[Event "*** Titled Tuesday 3|2 Blitz"]
[Site "Chess.com"]
[Date "2016.08.02"]
[Round "8"]
[White "pedromartinez91"]
[Black "stefanodinn"]
[Result "0-1"]
[WhiteElo "2286"]
[BlackElo "2239"]
[TimeControl "180+2"]
[EndTime "12:50:27 PDT"]
[Termination "stefanodinn won by resignation"]

1. e4 {[%clk 0:03:01.9]} 1... e5 {[%clk 0:02:55.6]} 2. Nf3 {[%clk 0:03:02.8]}
2... Nc6 {[%clk 0:02:55.8]} 3. Bb5 {[%clk 0:03:03.3]} 3... a6 {[%clk 0:02:55.7]}
4. Ba4 {[%clk 0:03:04.1]} 4... Nf6 {[%clk 0:02:56]} 5. O-O {[%clk 0:03:05]} 5...
Be7 {[%clk 0:02:56.2]} 6. d3 {[%clk 0:02:58.9]} 6... d6 {[%clk 0:02:52]} 7. a3
{[%clk 0:02:54.8]} 7... O-O {[%clk 0:02:51.1]} 8. Nc3 {[%clk 0:02:55.6]} 8... b5
{[%clk 0:02:32.2]} 9. Bb3 {[%clk 0:02:55.3]} 9... Na5 {[%clk 0:02:32.9]} 10. Ba2
{[%clk 0:02:55.7]} 10... c5 {[%clk 0:02:33.3]} 11. Bg5 {[%clk 0:02:56.2]} 11...
Be6 {[%clk 0:02:13.9]} 12. Bxf6 {[%clk 0:02:56.7]} 12... Bxf6 {[%clk 0:02:13.2]}
13. Bd5 {[%clk 0:02:57.5]} 13... Rc8 {[%clk 0:02:07.3]} 14. Qd2 {[%clk
0:02:54.6]} 14... Nc6 {[%clk 0:02:03.3]} 15. Rfe1 {[%clk 0:02:33.1]} 15... Nd4
{[%clk 0:01:53.4]} 16. Re3 {[%clk 0:02:12]} 16... b4 {[%clk 0:01:35.6]} 17. Ne2
{[%clk 0:02:05.5]} 17... Bxd5 {[%clk 0:01:33.3]} 18. exd5 {[%clk 0:02:03]} 18...
a5 {[%clk 0:01:25.5]} 19. Nfxd4 {[%clk 0:01:18.9]} 19... exd4 {[%clk 0:01:13.5]}
20. Re4 {[%clk 0:01:19.2]} 20... g6 {[%clk 0:00:59.6]} 21. b3 {[%clk 0:01:11.3]}
21... Qd7 {[%clk 0:00:52.6]} 22. Ng3 {[%clk 0:01:08.6]} 22... Bg7 {[%clk
0:00:51.4]} 23. a4 {[%clk 0:01:07.3]} 23... Qb7 {[%clk 0:00:47.3]} 24. Qg5
{[%clk 0:01:07]} 24... h6 {[%clk 0:00:42.5]} 25. Qe7 {[%clk 0:01:02.7]} 25...
Qxd5 {[%clk 0:00:37.9]} 26. Rae1 {[%clk 0:01:03]} 26... Qc6 {[%clk 0:00:25.2]}
27. h4 {[%clk 0:00:59.3]} 27... d5 {[%clk 0:00:26]} 28. R4e2 {[%clk 0:00:59.6]}
28... Bf6 {[%clk 0:00:22.7]} 29. Qa7 {[%clk 0:00:44.4]} 29... Ra8 {[%clk
0:00:20.7]} 30. Re7 {[%clk 0:00:37.7]} 30... Rxa7 {[%clk 0:00:19.7]} 31. Rxa7
{[%clk 0:00:38.6]} 31... Bxh4 {[%clk 0:00:20.3]} 32. Rxa5 {[%clk 0:00:35.6]}
32... Re8 {[%clk 0:00:19.6]} 33. Rxe8+ {[%clk 0:00:33.4]} 33... Qxe8 {[%clk
0:00:20.6]} 34. Kf1 {[%clk 0:00:25.2]} 34... Qe7 {[%clk 0:00:15.9]} 35. Ne2
{[%clk 0:00:23.8]} 35... Kg7 {[%clk 0:00:15.1]} 36. Rb5 {[%clk 0:00:17.9]} 36...
Qf6 {[%clk 0:00:08.9]} 37. g3 {[%clk 0:00:17.2]} 37... Bg5 {[%clk 0:00:08]} 38.
f4 {[%clk 0:00:16.6]} 38... h5 {[%clk 0:00:06.8]} 39. Kg2 {[%clk 0:00:16.1]}
39... h4 {[%clk 0:00:05.5]} 40. fxg5 {[%clk 0:00:15.7]} 40... Qxg5 {[%clk
0:00:06.6]} 41. Rxc5 {[%clk 0:00:15.7]} 41... Qe3 {[%clk 0:00:07]} 42. Kf1
{[%clk 0:00:14.7]} 42... Qf3+ {[%clk 0:00:06.7]} 43. Ke1 {[%clk 0:00:14.5]}
43... hxg3 {[%clk 0:00:07.9]} 44. Nxg3 {[%clk 0:00:15.6]} 44... Qxg3+ {[%clk
0:00:09.1]} 45. Kd1 {[%clk 0:00:16.9]} 45... Qg1+ {[%clk 0:00:09.4]} 46. Kd2
{[%clk 0:00:17.5]} 46... Qe3+ {[%clk 0:00:10.1]} 47. Kd1 {[%clk 0:00:18.7]}
47... g5 {[%clk 0:00:11.1]} 48. a5 {[%clk 0:00:19.3]} 48... g4 {[%clk
0:00:11.1]} 49. Rxd5 {[%clk 0:00:19.3]} 49... g3 {[%clk 0:00:10.9]} 50. Rxd4
{[%clk 0:00:18.7]} 50... Qxd4 {[%clk 0:00:11.1]} 0-1

[Event "*** Titled Tuesday 3|2 Blitz"]
[Site "Chess.com"]
[Date "2016.08.02"]
[Round "8"]
[White "wnstop"]
[Black "Tash_Boy"]
[Result "1-0"]
[WhiteElo "2452"]
[BlackElo "2308"]
[TimeControl "180+2"]
[EndTime "12:50:32 PDT"]
[Termination "wnstop won by resignation"]

1. e4 {[%clk 0:03:01.9]} 1... e6 {[%clk 0:03:00.6]} 2. d4 {[%clk 0:03:02.7]}
2... d5 {[%clk 0:03:01.4]} 3. Nd2 {[%clk 0:03:03.2]} 3... Be7 {[%clk 0:03:01.9]}
4. e5 {[%clk 0:03:00.1]} 4... c5 {[%clk 0:02:59.3]} 5. c3 {[%clk 0:03:00.7]}
5... Nc6 {[%clk 0:02:59.8]} 6. Qg4 {[%clk 0:02:54.2]} 6... g5 {[%clk 0:02:50.5]}
7. Bb5 {[%clk 0:02:38.6]} 7... h5 {[%clk 0:02:46.9]} 8. Qd1 {[%clk 0:02:39.6]}
8... Bd7 {[%clk 0:02:44.7]} 9. Ne2 {[%clk 0:02:30.2]} 9... Nxe5 {[%clk
0:02:39.7]} 10. Bxd7+ {[%clk 0:02:25.9]} 10... Nxd7 {[%clk 0:02:40.3]} 11. c4
{[%clk 0:02:23.1]} 11... dxc4 {[%clk 0:02:33.7]} 12. Nxc4 {[%clk 0:02:21.3]}
12... Qc7 {[%clk 0:02:34.8]} 13. d5 {[%clk 0:02:18.7]} 13... exd5 {[%clk
0:02:16.9]} 14. Qxd5 {[%clk 0:02:18]} 14... O-O-O {[%clk 0:01:52.1]} 15. Qxf7
{[%clk 0:01:58.6]} 15... Rf8 {[%clk 0:01:23.8]} 16. Qe6 {[%clk 0:01:54.8]} 16...
Rh6 {[%clk 0:01:24]} 17. Qe4 {[%clk 0:01:40.8]} 17... Qc6 {[%clk 0:00:39.6]} 18.
Qxc6+ {[%clk 0:01:38]} 18... Rxc6 {[%clk 0:00:38.1]} 19. O-O {[%clk 0:01:37.9]}
19... b5 {[%clk 0:00:33.9]} 20. Ne3 {[%clk 0:01:35.8]} 20... Ngf6 {[%clk
0:00:34.8]} 21. a4 {[%clk 0:01:33.9]} 21... b4 {[%clk 0:00:19.3]} 22. Ng3 {[%clk
0:01:13.8]} 22... Bd8 {[%clk 0:00:16.8]} 23. Nc4 {[%clk 0:01:09.1]} 23... g4
{[%clk 0:00:16.6]} 24. Nf5 {[%clk 0:01:02.9]} 24... Ne4 {[%clk 0:00:13.7]} 25.
Nfe3 {[%clk 0:00:53.9]} 25... h4 {[%clk 0:00:14.5]} 26. Nxg4 {[%clk 0:00:52.8]}
26... Rg8 {[%clk 0:00:13.3]} 27. h3 {[%clk 0:00:53.2]} 27... Bc7 {[%clk
0:00:13.4]} 28. Re1 {[%clk 0:00:48.6]} 28... Ndf6 {[%clk 0:00:14.3]} 29. Nxf6
{[%clk 0:00:48.4]} 29... Nxf6 {[%clk 0:00:13.8]} 30. Ne5 {[%clk 0:00:33.9]}
30... Re6 {[%clk 0:00:13.6]} 31. Nf3 {[%clk 0:00:34.5]} 31... Ne4 {[%clk
0:00:13.3]} 32. Be3 {[%clk 0:00:29.8]} 32... Reg6 {[%clk 0:00:13.5]} 33. Nxh4
{[%clk 0:00:31]} 33... R6g7 {[%clk 0:00:14]} 34. g4 {[%clk 0:00:31.6]} 34... Kb7
{[%clk 0:00:11.4]} 35. f3 {[%clk 0:00:28.8]} 35... Rh7 {[%clk 0:00:12.1]} 36.
fxe4 {[%clk 0:00:27]} 36... Rxh4 {[%clk 0:00:13.1]} 37. Kg2 {[%clk 0:00:28.7]}
37... Rgh8 {[%clk 0:00:13.9]} 38. Rh1 {[%clk 0:00:28.7]} 38... Re8 {[%clk
0:00:15.6]} 39. Kf3 {[%clk 0:00:26.7]} 39... Rh7 {[%clk 0:00:15.3]} 40. Bxc5
{[%clk 0:00:21.4]} 40... Rf7+ {[%clk 0:00:16.8]} 41. Kg2 {[%clk 0:00:21.3]}
41... Rxe4 {[%clk 0:00:17.2]} 42. Rhe1 {[%clk 0:00:23]} 42... Rc4 {[%clk
0:00:18.2]} 43. Rac1 {[%clk 0:00:24.6]} 43... Rcf4 {[%clk 0:00:16.7]} 44. Rf1
{[%clk 0:00:23.1]} 44... Rxf1 {[%clk 0:00:17.1]} 45. Rxf1 {[%clk 0:00:25]} 45...
Rd7 {[%clk 0:00:18.4]} 46. Bxb4 {[%clk 0:00:24.7]} 46... a5 {[%clk 0:00:19.8]}
47. Bc3 {[%clk 0:00:25.7]} 47... Rd3 {[%clk 0:00:21.2]} 48. Rf3 {[%clk
0:00:26.3]} 48... Rd1 {[%clk 0:00:22.1]} 49. Rf5 {[%clk 0:00:27.3]} 49... Rd3
{[%clk 0:00:23.1]} 50. Bxa5 {[%clk 0:00:22.8]} 50... Rg3+ {[%clk 0:00:24.1]} 51.
Kf2 {[%clk 0:00:24.1]} 51... Rxh3 {[%clk 0:00:25.3]} 52. Rf7 {[%clk 0:00:23.6]}
52... Rh2+ {[%clk 0:00:25.3]} 53. Kg1 {[%clk 0:00:25.2]} 53... Rc2 {[%clk
0:00:26]} 54. Rxc7+ {[%clk 0:00:25]} 1-0

[Event "*** Titled Tuesday 3|2 Blitz"]
[Site "Chess.com"]
[Date "2016.08.02"]
[Round "8"]
[White "Usurpov"]
[Black "Hieronymus00"]
[Result "1-0"]
[WhiteElo "2341"]
[BlackElo "2148"]
[TimeControl "180+2"]
[EndTime "12:51:02 PDT"]
[Termination "Usurpov won on time"]

1. e4 {[%clk 0:03:01.9]} 1... e5 {[%clk 0:03:00.6]} 2. Nf3 {[%clk 0:03:02.6]}
2... Nc6 {[%clk 0:03:01.5]} 3. Nc3 {[%clk 0:03:03.7]} 3... Nf6 {[%clk
0:03:01.9]} 4. d4 {[%clk 0:03:04.9]} 4... exd4 {[%clk 0:03:00.6]} 5. Nxd4 {[%clk
0:03:06.8]} 5... Bb4 {[%clk 0:03:01.5]} 6. Nxc6 {[%clk 0:03:07.9]} 6... bxc6
{[%clk 0:03:03.2]} 7. Bd3 {[%clk 0:03:09.6]} 7... O-O {[%clk 0:03:03.3]} 8. O-O
{[%clk 0:03:10.6]} 8... Re8 {[%clk 0:03:04.5]} 9. Qf3 {[%clk 0:03:11.3]} 9...
Rb8 {[%clk 0:02:54.3]} 10. h3 {[%clk 0:02:58.2]} 10... Bd6 {[%clk 0:02:51.7]}
11. b3 {[%clk 0:02:54.4]} 11... Be5 {[%clk 0:02:52.2]} 12. Bd2 {[%clk
0:02:55.2]} 12... d6 {[%clk 0:02:44.1]} 13. Rae1 {[%clk 0:02:50.3]} 13... h6
{[%clk 0:02:26.1]} 14. Be2 {[%clk 0:02:18.2]} 14... Be6 {[%clk 0:02:07.6]} 15.
Bd3 {[%clk 0:02:13.7]} 15... Nd7 {[%clk 0:02:01.9]} 16. Ne2 {[%clk 0:02:07.8]}
16... Nc5 {[%clk 0:01:57.5]} 17. Be3 {[%clk 0:02:02.6]} 17... Nxd3 {[%clk
0:01:54.5]} 18. cxd3 {[%clk 0:02:04.5]} 18... a5 {[%clk 0:01:53.3]} 19. Rc1
{[%clk 0:01:52.5]} 19... c5 {[%clk 0:01:51]} 20. d4 {[%clk 0:01:49.4]} 20...
cxd4 {[%clk 0:01:44]} 21. Nxd4 {[%clk 0:01:49.9]} 21... Bd7 {[%clk 0:01:44.7]}
22. Nc6 {[%clk 0:01:46.2]} 22... Bxc6 {[%clk 0:01:44.5]} 23. Rxc6 {[%clk
0:01:48.1]} 23... Qf6 {[%clk 0:01:17.2]} 24. Qxf6 {[%clk 0:01:46.5]} 24... Bxf6
{[%clk 0:01:17.8]} 25. Rc4 {[%clk 0:01:25.5]} 25... Rb4 {[%clk 0:01:09.1]} 26.
Rfc1 {[%clk 0:01:18.7]} 26... Rxe4 {[%clk 0:01:02.7]} 27. Rxe4 {[%clk 0:01:15]}
27... Rxe4 {[%clk 0:01:03.2]} 28. Rxc7 {[%clk 0:01:16.5]} 28... a4 {[%clk
0:01:02.8]} 29. Rc8+ {[%clk 0:01:02.6]} 29... Kh7 {[%clk 0:01:03]} 30. Rc4
{[%clk 0:00:51.4]} 30... axb3 {[%clk 0:00:44.5]} 31. axb3 {[%clk 0:00:42.9]}
31... Rxc4 {[%clk 0:00:45.1]} 32. bxc4 {[%clk 0:00:44.8]} 32... Kg6 {[%clk
0:00:46.1]} 33. g4 {[%clk 0:00:45.7]} 33... Bc3 {[%clk 0:00:39.1]} 34. Kf1
{[%clk 0:00:41.6]} 34... Kf6 {[%clk 0:00:37.8]} 35. Ke2 {[%clk 0:00:42.6]} 35...
Ke5 {[%clk 0:00:38.6]} 36. Kd3 {[%clk 0:00:43.7]} 36... Ba1 {[%clk 0:00:34.8]}
37. f4+ {[%clk 0:00:44.7]} 37... Ke6 {[%clk 0:00:31.1]} 38. Ke4 {[%clk
0:00:45.9]} 38... Bb2 {[%clk 0:00:25.4]} 39. f5+ {[%clk 0:00:43.6]} 39... Kd7
{[%clk 0:00:23.7]} 40. Kd5 {[%clk 0:00:42.8]} 40... Be5 {[%clk 0:00:23.7]} 41.
c5 {[%clk 0:00:31.3]} 41... f6 {[%clk 0:00:19.2]} 42. c6+ {[%clk 0:00:28.1]}
42... Kc7 {[%clk 0:00:20.2]} 43. Bd2 {[%clk 0:00:29]} 43... Bg3 {[%clk
0:00:16.5]} 44. Ba5+ {[%clk 0:00:28.7]} 44... Kc8 {[%clk 0:00:15.3]} 45. Ke6
{[%clk 0:00:29.8]} 45... Be5 {[%clk 0:00:13.6]} 46. Bb6 {[%clk 0:00:28.1]} 46...
d5 {[%clk 0:00:12.6]} 47. Kxd5 {[%clk 0:00:28.6]} 47... Bb2 {[%clk 0:00:12.2]}
48. Ke6 {[%clk 0:00:28.6]} 48... Bc1 {[%clk 0:00:06.9]} 49. Kf7 {[%clk
0:00:28.6]} 49... h5 {[%clk 0:00:08.3]} 50. Kxg7 {[%clk 0:00:26]} 50... hxg4
{[%clk 0:00:09]} 51. hxg4 {[%clk 0:00:27.9]} 51... Bb2 {[%clk 0:00:07.3]} 52.
Kf7 {[%clk 0:00:27.4]} 52... Bc3 {[%clk 0:00:07.9]} 53. Ke6 {[%clk 0:00:28.4]}
53... Bb2 {[%clk 0:00:09]} 54. Ba5 {[%clk 0:00:26.8]} 54... Bd4 {[%clk
0:00:07.3]} 55. Bb4 {[%clk 0:00:25.1]} 55... Kc7 {[%clk 0:00:06.6]} 56. Be7
{[%clk 0:00:26.1]} 56... Kxc6 {[%clk 0:00:06.6]} 57. Bxf6 {[%clk 0:00:27.8]}
57... Bc5 {[%clk 0:00:04.5]} 58. Be7 {[%clk 0:00:29]} 58... Be3 {[%clk
0:00:03.5]} 59. f6 {[%clk 0:00:29.7]} 1-0

[Event "*** Titled Tuesday 3|2 Blitz"]
[Site "Chess.com"]
[Date "2016.08.02"]
[Round "8"]
[White "yian123"]
[Black "Iball95"]
[Result "1-0"]
[WhiteElo "2374"]
[BlackElo "2447"]
[TimeControl "180+2"]
[EndTime "12:51:12 PDT"]
[Termination "yian123 won by resignation"]

1. e4 {[%clk 0:03:01.9]} 1... e6 {[%clk 0:02:58]} 2. d4 {[%clk 0:03:02.2]} 2...
d5 {[%clk 0:02:59.5]} 3. Nd2 {[%clk 0:03:03.3]} 3... Nc6 {[%clk 0:02:59.8]} 4.
Ngf3 {[%clk 0:03:02.4]} 4... Nf6 {[%clk 0:02:59.9]} 5. e5 {[%clk 0:03:03.6]}
5... Nd7 {[%clk 0:03:01.4]} 6. Bd3 {[%clk 0:03:04.8]} 6... Nb4 {[%clk
0:03:01.5]} 7. Be2 {[%clk 0:03:05.3]} 7... c5 {[%clk 0:03:02.8]} 8. c3 {[%clk
0:03:06]} 8... Nc6 {[%clk 0:03:04]} 9. O-O {[%clk 0:03:05.3]} 9... f6 {[%clk
0:02:50.7]} 10. exf6 {[%clk 0:03:05.3]} 10... Nxf6 {[%clk 0:02:52.6]} 11. Re1
{[%clk 0:02:54.1]} 11... cxd4 {[%clk 0:02:50.4]} 12. cxd4 {[%clk 0:02:49.7]}
12... Bd6 {[%clk 0:02:51.7]} 13. Nb3 {[%clk 0:02:47.7]} 13... O-O {[%clk
0:02:52.6]} 14. Bg5 {[%clk 0:02:48.5]} 14... Bd7 {[%clk 0:02:52.3]} 15. Rc1
{[%clk 0:02:47]} 15... Qe8 {[%clk 0:02:52.9]} 16. Bh4 {[%clk 0:02:44.6]} 16...
Ne4 {[%clk 0:02:51.7]} 17. Bd3 {[%clk 0:02:41]} 17... Qh5 {[%clk 0:02:48.5]} 18.
Bxe4 {[%clk 0:02:33.9]} 18... dxe4 {[%clk 0:02:47.5]} 19. Rxe4 {[%clk
0:02:35.1]} 19... Rxf3 {[%clk 0:02:48.8]} 20. Qxf3 {[%clk 0:02:34]} 20... Qd5
{[%clk 0:02:21.7]} 21. Bg3 {[%clk 0:02:31.1]} 21... Rf8 {[%clk 0:02:20.9]} 22.
Qe2 {[%clk 0:02:31.6]} 22... Be7 {[%clk 0:02:17.3]} 23. Re1 {[%clk 0:02:29.4]}
23... b6 {[%clk 0:02:09.1]} 24. h3 {[%clk 0:02:23.2]} 24... Bf6 {[%clk
0:02:05.9]} 25. Be5 {[%clk 0:02:07]} 25... Nxe5 {[%clk 0:01:52.8]} 26. dxe5
{[%clk 0:02:08.9]} 26... Be7 {[%clk 0:01:52.1]} 27. Rd4 {[%clk 0:02:04.6]} 27...
Qb7 {[%clk 0:01:52.3]} 28. Qc4 {[%clk 0:01:55.1]} 28... b5 {[%clk 0:01:35.3]}
29. Rxd7 {[%clk 0:01:49.1]} 29... Qxd7 {[%clk 0:01:34.3]} 30. Qd4 {[%clk
0:01:49.1]} 30... Qc7 {[%clk 0:01:26.3]} 31. Rc1 {[%clk 0:01:29.4]} 31... Qb7
{[%clk 0:01:26.8]} 32. Nc5 {[%clk 0:01:24.1]} 32... Qb6 {[%clk 0:01:20.3]} 33.
b4 {[%clk 0:01:24.5]} 33... Rd8 {[%clk 0:01:17.7]} 34. Qg4 {[%clk 0:01:21.9]}
34... Bxc5 {[%clk 0:01:18.5]} 35. Rxc5 {[%clk 0:01:22.3]} 35... a6 {[%clk
0:01:16]} 36. a3 {[%clk 0:01:22.7]} 36... Re8 {[%clk 0:00:59.4]} 37. Qe4 {[%clk
0:01:18.7]} 37... Qd8 {[%clk 0:00:57.3]} 38. Qc2 {[%clk 0:01:14.5]} 38... Qd4
{[%clk 0:00:55.8]} 39. Qc3 {[%clk 0:01:11]} 39... Qd1+ {[%clk 0:00:53.8]} 40.
Kh2 {[%clk 0:01:11.6]} 40... Qe2 {[%clk 0:00:55.4]} 41. Rc8 {[%clk 0:00:48.4]}
41... Rf8 {[%clk 0:00:39.2]} 42. Rxf8+ {[%clk 0:00:46.4]} 42... Kxf8 {[%clk
0:00:41.1]} 43. Qc8+ {[%clk 0:00:43.1]} 43... Kf7 {[%clk 0:00:42.3]} 44. Qd7+
{[%clk 0:00:43.5]} 44... Kf8 {[%clk 0:00:43.5]} 45. Qxe6 {[%clk 0:00:42.1]}
45... Qxf2 {[%clk 0:00:44.7]} 46. Qd6+ {[%clk 0:00:42.2]} 46... Ke8 {[%clk
0:00:33]} 47. e6 {[%clk 0:00:43.3]} 47... Qa7 {[%clk 0:00:23.3]} 48. Kh1 {[%clk
0:00:32.9]} 48... h6 {[%clk 0:00:22.5]} 49. Kh2 {[%clk 0:00:30.5]} 49... Qb7
{[%clk 0:00:22.1]} 50. Kg1 {[%clk 0:00:28.3]} 50... Qa7+ {[%clk 0:00:23.1]} 51.
Kf1 {[%clk 0:00:29.1]} 51... Qb7 {[%clk 0:00:24.6]} 52. h4 {[%clk 0:00:23.3]}
52... Qa7 {[%clk 0:00:23.7]} 53. h5 {[%clk 0:00:21.7]} 53... Qb7 {[%clk
0:00:24.9]} 54. Kg1 {[%clk 0:00:19.3]} 54... Qa7+ {[%clk 0:00:25.9]} 55. Kh2
{[%clk 0:00:20.5]} 55... Qb7 {[%clk 0:00:26.2]} 56. Kh3 {[%clk 0:00:20.8]} 56...
Qa7 {[%clk 0:00:26.1]} 57. Kg4 {[%clk 0:00:21.5]} 57... Qb7 {[%clk 0:00:26.6]}
58. Kf5 {[%clk 0:00:22.2]} 58... Qa7 {[%clk 0:00:26.3]} 59. Qd7+ {[%clk
0:00:19.5]} 59... Qxd7 {[%clk 0:00:23.6]} 60. exd7+ {[%clk 0:00:21.4]} 60...
Kxd7 {[%clk 0:00:25.1]} 61. Kg6 {[%clk 0:00:22.9]} 1-0

[Event "*** Titled Tuesday 3|2 Blitz"]
[Site "Chess.com"]
[Date "2016.08.02"]
[Round "8"]
[White "maheswaran26"]
[Black "cabalista"]
[Result "1-0"]
[WhiteElo "2077"]
[BlackElo "2339"]
[TimeControl "180+2"]
[EndTime "12:51:28 PDT"]
[Termination "maheswaran26 won by resignation"]

1. d4 {[%clk 0:02:58.9]} 1... Nf6 {[%clk 0:02:58.2]} 2. Nf3 {[%clk 0:02:59.1]}
2... g6 {[%clk 0:02:59.1]} 3. c4 {[%clk 0:02:59.4]} 3... Bg7 {[%clk 0:03:00.5]}
4. Nc3 {[%clk 0:02:59.4]} 4... O-O {[%clk 0:03:00.7]} 5. e4 {[%clk 0:02:59.8]}
5... d6 {[%clk 0:03:01.8]} 6. h3 {[%clk 0:03:00.7]} 6... Na6 {[%clk 0:03:02]} 7.
Bg5 {[%clk 0:03:00.6]} 7... c6 {[%clk 0:03:00.7]} 8. g4 {[%clk 0:02:52.9]} 8...
Qa5 {[%clk 0:02:41.8]} 9. Qd2 {[%clk 0:02:23.1]} 9... e5 {[%clk 0:02:42]} 10. d5
{[%clk 0:02:15.8]} 10... cxd5 {[%clk 0:02:41.2]} 11. Nxd5 {[%clk 0:02:04.9]}
11... Qxd2+ {[%clk 0:02:30.2]} 12. Nxd2 {[%clk 0:02:04.3]} 12... Nxd5 {[%clk
0:02:30.4]} 13. cxd5 {[%clk 0:02:04.7]} 13... Nb4 {[%clk 0:02:25.3]} 14. Kd1
{[%clk 0:01:57.6]} 14... f6 {[%clk 0:02:24]} 15. Be3 {[%clk 0:01:56]} 15... f5
{[%clk 0:02:24.9]} 16. f3 {[%clk 0:01:22.9]} 16... Bd7 {[%clk 0:02:12.9]} 17. a3
{[%clk 0:01:13.4]} 17... Na6 {[%clk 0:02:09.9]} 18. Bd3 {[%clk 0:01:12.5]} 18...
fxg4 {[%clk 0:01:53.3]} 19. hxg4 {[%clk 0:01:10.3]} 19... b5 {[%clk 0:01:52.1]}
20. a4 {[%clk 0:00:49.3]} 20... Nb4 {[%clk 0:01:41.4]} 21. Bxb5 {[%clk 0:00:49]}
21... Bxb5 {[%clk 0:01:39.7]} 22. axb5 {[%clk 0:00:48.7]} 22... Rfb8 {[%clk
0:01:35.7]} 23. Rxa7 {[%clk 0:00:45.8]} 23... Rxa7 {[%clk 0:01:33.3]} 24. Bxa7
{[%clk 0:00:45.4]} 24... Rxb5 {[%clk 0:01:33]} 25. Nc4 {[%clk 0:00:45.8]} 25...
Bf6 {[%clk 0:00:58.9]} 26. Be3 {[%clk 0:00:39.8]} 26... Nd3 {[%clk 0:00:53.1]}
27. Kc2 {[%clk 0:00:36.9]} 27... Nb4+ {[%clk 0:00:53.6]} 28. Kb1 {[%clk
0:00:35.6]} 28... Be7 {[%clk 0:00:49.9]} 29. Rd1 {[%clk 0:00:34.3]} 29... Kg7
{[%clk 0:00:46.5]} 30. b3 {[%clk 0:00:34.2]} 30... h5 {[%clk 0:00:45.2]} 31.
gxh5 {[%clk 0:00:33.3]} 31... gxh5 {[%clk 0:00:46.2]} 32. Rh1 {[%clk 0:00:34.1]}
32... h4 {[%clk 0:00:41.7]} 33. Bf2 {[%clk 0:00:34.1]} 33... Nd3 {[%clk
0:00:38.1]} 34. Bxh4 {[%clk 0:00:31.2]} 34... Bxh4 {[%clk 0:00:32.5]} 35. Rxh4
{[%clk 0:00:31.5]} 35... Ne1 {[%clk 0:00:28.8]} 36. Kb2 {[%clk 0:00:24]} 36...
Nxf3 {[%clk 0:00:28]} 37. Rg4+ {[%clk 0:00:21.4]} 37... Kf6 {[%clk 0:00:27.4]}
38. Nxd6 {[%clk 0:00:19.6]} 38... Rb8 {[%clk 0:00:22.3]} 39. Nf5 {[%clk
0:00:17.6]} 39... Nd4 {[%clk 0:00:21.3]} 40. Nxd4 {[%clk 0:00:16.6]} 40... exd4
{[%clk 0:00:21.9]} 41. Rg5 {[%clk 0:00:16.4]} 41... d3 {[%clk 0:00:20.5]} 42.
Rf5+ {[%clk 0:00:16.5]} 42... Kg6 {[%clk 0:00:20.7]} 43. Kc3 {[%clk 0:00:17.2]}
43... d2 {[%clk 0:00:19.5]} 44. Kxd2 {[%clk 0:00:16.5]} 44... Rxb3 {[%clk
0:00:20]} 45. d6 {[%clk 0:00:16.9]} 45... Rb2+ {[%clk 0:00:14.7]} 46. Kd3 {[%clk
0:00:17.5]} 46... Rb1 {[%clk 0:00:15.7]} 47. Rd5 {[%clk 0:00:17.7]} 47... Rd1+
{[%clk 0:00:10.4]} 48. Kc4 {[%clk 0:00:18.5]} 48... Rc1+ {[%clk 0:00:11.3]} 49.
Kd4 {[%clk 0:00:19.1]} 49... Rd1+ {[%clk 0:00:12.3]} 50. Ke5 {[%clk 0:00:20]}
50... Rxd5+ {[%clk 0:00:11]} 51. Kxd5 {[%clk 0:00:19.2]} 1-0